Cogmind - Beta 12 @@@ ROGUE MODE // 2024.01.05 @ 19:47:41 Player: M4NZ Result: Destroyed by Y-45 Defender with Beam Rifle Performance ------------- Evolutions (1) 500 Regions Visited (2) 400 Robots Destroyed (27) 135 Value Destroyed (861) 861 Prototype IDs (1) 20 Alien Tech Used (0) 0 Bonus (0) 0 TOTAL SCORE: 1916 Bonus ------- None Cogmind --------- Core Integrity 0/400 Matter 271/300 Energy 100/100 System Corruption 0% Temperature Cool (27) Movement Core (350) Ox6 Location -9/Materials Parts ------- > --- POWER (1) -------- (None) > --- PROPULSION (4) --- (None) > --- UTILITY (2) ------ Large Storage Unit Signal Interpreter > --- WEAPON (2) ------- (None) > --- INVENTORY (15) --- Aluminum Leg Heat Sink Improved Heat Sink Terrain Scan Processor Peak State ------------ > --- POWER ------------ Light Ion Engine > --- PROPULSION ------- Aluminum Leg Aluminum Leg Aluminum Leg Aluminum Leg > --- UTILITY ---------- Improved Heat Sink Signal Interpreter > --- WEAPON ----------- Grenade Launcher Mini Grenade Launcher > --- INVENTORY -------- Ion Engine Ion Engine Aluminum Leg [Rating: 12] Favorites ----------- Power Ion Engine Engine Ion Engine Propulsion Aluminum Leg Leg Aluminum Leg Utility Sensor Array Device Sensor Array Storage Large Storage Unit Processor Signal Interpreter Weapon Light Cannon Energy Gun Medium Laser Energy Cannon Beam Cannon Ballistic Gun Light Assault Rifle Ballistic Cannon Light Cannon Launcher Mini Grenade Launcher Build | -11 -10 -9 ------- Run | Jun Mat Mat Slots Evolved 2 | . . 2 Power . | . . . Propulsion 2 | . . 2 Utility . | . . . Weapon . | . . . Parts Attached 45 | 5 20 20 Power 9 | 1 5 3 Engine 9 | 1 5 3 Core . | . . . Reactor . | . . . Propulsion 19 | 2 5 12 Treads . | . . . Leg 19 | 2 5 12 Wheel . | . . . Hover . | . . . Flight . | . . . Utility 8 | . 6 2 Device 5 | . 4 1 Storage 1 | . . 1 Processor 2 | . 2 . Hackware . | . . . Protection . | . . . Artifact . | . . . Weapon 9 | 2 4 3 Energy Gun 3 | 1 1 1 Energy Cannon 2 | . 2 . Ballistic Gun 1 | 1 . . Ballistic Cannon 1 | . 1 . Launcher 2 | . . 2 Special Weapon . | . . . Impact Weapon . | . . . Slashing Weapon . | . . . Piercing Weapon . | . . . Special Melee Weapon . | . . . Unidentified Prototypes 1 | . . 1 Parts Lost 17 | . . 17 Power 2 | . . 2 Propulsion 9 | . . 9 Utility 1 | . . 1 Weapon 5 | . . 5 Highest Loss Streak 11 | . . 11 To Critical Strikes . | . . . Average Slot Usage (%) 96 | . 97 93 Engine 12 | . 14 10 Leg 31 | . 27 40 Device 14 | . 18 6 Storage 1 | . . 4 Processor 8 | . 6 11 Energy Gun 2 | . 3 . Energy Cannon 8 | . 10 4 Ballistic Gun 1 | . 1 . Ballistic Cannon 9 | . 12 4 Launcher 3 | . . 10 Naked Turns . | . . . Heaviest Build 29 | 6 14 29 Greatest Support 40 | 20 20 40 Greatest Overweight (x) 6 | . 1 6 Average Overweight (x) . | . . . Largest Inventory Capacity 15 | 5 5 15 Average Capacity 6 | 5 5 9 Most Carried 7 | 4 5 7 Average Carried 4 | 2 4 4 Final Capacity 15 | 5 5 15 Final Carried 4 | 3 4 4 Class Distribution -------------------- 59% | Mutant 40% | Scavenger-Mutant Dominant Class ---------------- Mutant | -10/Materials Scavenger-Mutant | -9/Materials Resources | -11 -10 -9 ----------- Run | Jun Mat Mat Matter Collected 848 | 237 368 243 Remotely . | . . . Salvage Created 764 | . 477 287 Parts 45 | . 31 14 Haulers Intercepted . | . . . Recyclers Shooed . | . . . Parts Field Recycled . | . . . Retrieved Matter . | . . . Parts Self-Destructed . | . . . Prevented . | . . . Kills | -11 -10 -9 ------- Run | Jun Mat Mat Combat Hostiles Destroyed 24 | . 14 10 Guns 2 | . 1 1 Cannons 15 | . 13 2 AOE 6 | . . 6 Classes Destroyed 4 | . 3 1 Watcher 3 | . 3 . Swarmer 4 | . 3 1 Grunt 19 | . 11 8 Sentry 1 | . . 1 Best Kill Streak 4 | . 4 4 Combat Bots Only 4 | . 4 4 Max Kills in Single Turn 2 | . 1 2 Gunslinging . | . . . Exploded 1 | . . 1 Melee . | . . . Uniques/NPCs Destroyed . | . . . Combat | -11 -10 -9 -------- Run | Jun Mat Mat Damage Taken 2272 | . 452 1820 Core 534 | . 124 410 Absorbed by Shields . | . . . Core Remaining (%) 75 | 100 50 . Volleys Fired 68 | . 47 21 Largest 2 | . 2 2 Hottest 95 | . 95 95 Shots Fired 129 | . 94 35 Gun 15 | . 10 5 Cannon 107 | . 84 23 Launcher 7 | . . 7 Special . | . . . Kinetic 60 | . 47 13 Thermal 46 | . 36 10 Explosive 7 | . . 7 Electromagnetic 16 | . 11 5 Robot Hit Streak 14 | . 14 11 Robot Miss Streak 5 | . 5 2 Penetration Max . | . . . Secondary Targets . | . . . Shots Hit Robots 79 | . 53 26 Core Hits 37 | . 22 15 Critical Kills 1 | . . 1 Critical Parts Destroyed . | . . . Critical Strikes 2 | . . 2 Meltdown 1 | . . 1 Blast 1 | . . 1 Melee Attacks . | . . . Impact . | . . . Slashing . | . . . Piercing . | . . . Sneak Attacks . | . . . Combat Hostiles . | . . . Follow-up Attacks . | . . . Damage Inflicted 1631 | . 973 658 Guns 126 | . 63 63 Cannons 1183 | . 901 282 Explosions 313 | . . 313 Melee . | . . . Ramming 9 | . 9 . Kinetic 619 | . 443 176 Thermal 422 | . 270 152 Explosive 267 | . . 267 Electromagnetic 314 | . 251 63 Impact . | . . . Slashing . | . . . Piercing . | . . . Highest Corruption 2 | . 2 . Average Corruption 2 | . 2 . Corruption Purged . | . . . Corruption Blocked . | . . . Effects 4 | . 4 . Message Errors 3 | . 3 . Energy Discharges 1 | . 1 . Overload Shots . | . . . Overflow Damage 4 | . . 4 Projectiles . | . . . Explosions 4 | . . 4 Melee . | . . . Knockbacks 12 | . 9 3 Impact . | . . . Kinetic 11 | . 8 3 Secondary 1 | . 1 . Self-Inflicted Damage 119 | . . 119 Shots 7 | . . 7 Rammed . | . . . Targets Rammed 1 | . 1 . Kicked 1 | . 1 . Crushed . | . . . Highest Temperature 228 | . 195 228 Average Temperature 48 | . 37 73 Received Heat Transfer 954 | . 195 759 Siege Activations . | . . . Robots Corrupted . | . . . Combat Hostiles . | . . . Parts Fried . | . . . Impact Corruptions . | . . . Robots Melted 1 | . . 1 Combat Hostiles 1 | . . 1 Parts Melted 2 | . . 2 Heat Transferred 901 | . 629 272 Parts Sabotaged . | . . . Parts Stolen . | . . . Parts Stripped . | . . . Power Chain Reactions 1 | . . 1 Missiles Intercepted . | . . . Alert | -11 -10 -9 ------- Run | Jun Mat Mat Peak Influence 293 | . 250 293 Initial . | . . . Average 73 | . 72 80 Maximum Alert Level 1 | . 1 1 Low Security (%) 97 | 100 98 94 Level 1 2 | . 1 5 Level 2 . | . . . Level 3 . | . . . Level 4 . | . . . Level 5 . | . . . High Security . | . . . Max Security . | . . . Squads Dispatched 5 | . 3 2 Investigation 1 | . 1 . Extermination . | . . . Reinforcement 4 | . 2 2 Assault . | . . . Garrison . | . . . Intercept . | . . . Searches Triggered . | . . . Construction Impeded . | . . . Haulers Reinforced . | . . . Active Scanning Responses . | . . . Cargo Convoy Interrupts . | . . . Stealth | -11 -10 -9 --------- Run | Jun Mat Mat Distress Signals 3 | . 3 . Communications Jammed . | . . . Distress Signals . | . . . Times Spotted 56 | . 24 32 Peak Tracking Total 13 | . 6 13 Tactical Retreats 3 | . 1 2 Traps | -11 -10 -9 ------- Run | Jun Mat Mat Traps Triggered 4 | . 4 . Indirectly . | . . . Trap Hack Attempts . | . . . Triggered . | . . . Disarmed . | . . . Reprogrammed . | . . . Reused . | . . . Traps Extracted . | . . . Installed . | . . . Triggered . | . . . Machines | -11 -10 -9 ---------- Run | Jun Mat Mat Machines Disabled 4 | . 2 2 Max in Single Turn 1 | . 1 1 Machines Repaired . | . . . Machines Sabotaged . | . . . Overloaded Fab Kills . | . . . Hacking | -11 -10 -9 --------- Run | Jun Mat Mat Machines Accessed 1 | . 1 . Terminals . | . . . Fabricators . | . . . Repair Stations . | . . . Recycling Units 1 | . 1 . Scanalyzers . | . . . Garrison Access . | . . . Total Hacks 1 | . 1 . Successful 1 | . 1 . Failed . | . . . Catastrophic . | . . . Database Lockouts . | . . . Manual . | . . . Terminals . | . . . Fabricators . | . . . Repair Stations . | . . . Recycling Units 1 | . 1 . Scanalyzers . | . . . Garrison Access . | . . . Terminal Hacks . | . . . Fabricator Hacks . | . . . Repair Station Hacks . | . . . Recycling Unit Hacks 1 | . 1 . Report Inventory 1 | . 1 . Scanalyzer . | . . . Garrison Access Hacks . | . . . Unauthorized Hacks . | . . . Terminals . | . . . Fabricators . | . . . Repair Stations . | . . . Recycling Units . | . . . Scanalyzers . | . . . Garrison Access . | . . . Data Cores Recovered . | . . . Used . | . . . Hacking Detections . | . . . Full Trace Events . | . . . Feedback Events . | . . . Feedback Blocked . | . . . Robot Schematics Acquired . | . . . Robots Built . | . . . Authchips . | . . . Time . | . . . Total Robot Build Rating . | . . . Part Schematics Acquired . | . . . Parts Built . | . . . Authchips . | . . . Time . | . . . Total Part Build Rating . | . . . Parts Repaired . | . . . Time . | . . . Parts Recycled . | . . . Recycled Matter . | . . . Retrieved Matter . | . . . Retrieved Components . | . . . Parts Scanalyzed . | . . . Part Schematics Acquired . | . . . Parts Damaged . | . . . Bothacking | -11 -10 -9 ------------ Run | Jun Mat Mat Used RIF Installer . | . . . Robots Hacked . | . . . Non-combat . | . . . Combat . | . . . Robot Hacks Applied . | . . . Relay Couplers Released . | . . . Fabnet Peak Effective % . | . . . Robots Rewired . | . . . Allies Hacked . | . . . Hacks Repelled . | . . . Allies | -11 -10 -9 -------- Run | Jun Mat Mat Total Allies . | . . . Largest Group . | . . . Highest-Rated Group . | . . . Highest-Rated Ally . | . . . Total Orders . | . . . Ally Attacks . | . . . Total Damage . | . . . Kills . | . . . Allies Corrupted . | . . . Allies Melted . | . . . Intel | -11 -10 -9 ------- Run | Jun Mat Mat Robot Analysis Total . | . . . Derelict Logs Recovered . | . . . Drone Launches . | . . . Drone Recoveries . | . . . Exploration | -11 -10 -9 ------------- Run | Jun Mat Mat Turns Passed 2390 | 56 1606 728 Spaces Moved 1617 | 49 1098 470 Core 20 | 19 . 1 Treads . | . . . Legs 1597 | 30 1098 469 Wheels . | . . . Hover . | . . . Flight . | . . . Fastest Speed 50 | 50 120 120 Average Speed 119 | 92 120 120 Slowest Speed 350 | 120 190 350 Overloaded Moves . | . . . Propulsion Burnouts . | . . . Robots Hopped . | . . . Cave-ins Triggered . | . . . Exploration Rate (%) 46 | 3 95 41 Regions Visited 2 Branch Regions . Pre-discovered Areas . | . . . Known Exits Taken 1 | . 1 . Unknown Exits Taken 1 | 1 . . Scrap Searched . | . . . Spaces Dug . | . . . Terrain Destroyed 48 | . . 48 Melee . | . . . Projectile . | . . . AOE 48 | . . 48 Terrain Rammed . | . . . Walls Destroyed . | . . . Machines Disabled . | . . . Actions | -11 -10 -9 --------- Run | Jun Mat Mat Total 1943 | 58 1293 592 Wait 177 | . 101 76 Move 1615 | 48 1097 470 Hop . | . . . Pick Up 14 | 5 6 3 Fast Attach 20 | 3 12 5 Attach 11 | 2 2 7 Detach 4 | . 4 . Swap 14 | . 6 8 Drop 19 | . 17 2 Fire 68 | . 47 21 Melee . | . . . Ram . | . . . Kick 1 | . 1 . Crush . | . . . Escape Stasis . | . . . Rewire . | . . . Trap . | . . . Miscellaneous . | . . . Route ------- -11/Junkyard -10/Materials (discovered 5 exits: *Mat x3 / *Min x2) -9/Materials (discovered 2 exits: *Min / *Sto) History --------- Turn | Location | Event 8 | -11/Junkyard | Discovered new exit (range 16) 57 | -11/Junkyard | Entered Materials 57 | -10/Materials | Discovered new exit (range 9) 329 | -10/Materials | Build established: Mutant 485 | -10/Materials | Discovered new exit (range 7) 643 | -10/Materials | Discovered new exit (range 16) 837 | -10/Materials | Discovered new exit (range 8) 860 | -10/Materials | Identified exit to Mines 979 | -10/Materials | Discovered new exit (range 4) 983 | -10/Materials | Identified exit to Materials 1452 | -10/Materials | Build established: Scavenger-Mutant 1663 | -10/Materials | Entered another Materials area 1663 | -9/Materials | Evolved 2 slots: Propulsion x2 2118 | -9/Materials | Discovered new exit (range 13) 2155 | -9/Materials | Identified exit to Mines 2307 | -9/Materials | Lost 3 parts (1p1n1w) 2320 | -9/Materials | Core integrity fell below 50% 2361 | -9/Materials | Discovered new exit (range 12) 2383 | -9/Materials | Core integrity fell below 20% 2390 | -9/Materials | Identified exit to Storage 2391 | -9/Materials | Destroyed by Y-45 Defender with Beam Rifle Last Messages --------------- 02374_ Acquired Aluminum Leg. 02375_ K-01 Serf collects debris. 02375_ U-05 Engineer builds a Wall. 02378_ Y-45 Defender destroyed. 02378_ Acquired 6 matter. 02379_ U-05 Engineer builds a Door. 02380_ K-01 Serf collects debris. 02384_ U-05 Engineer lays Concrete. 02385_ Aluminum Leg destroyed. 02385_ U-05 Engineer lays Concrete. 02387_ Critical hit (Burn: +37). 02387_ Aluminum Leg destroyed. 02387_ K-01 Serf collects debris. 02387_ U-05 Engineer lays Concrete. 02388_ Aluminum Leg destroyed. 02388_ U-05 Engineer lays Concrete. 02390_ EXIT=IDENTIFIED: STORAGE 02390_ K-01 Serf collects debris. 02390_ U-05 Engineer lays Concrete. 02391_ Critical hit (Burn: +37). Map ----- +----------------------------------------------------+ | ?????????????????????? ??? #"" >%!# """ # # | | ?????????????????????? ??? #"! | # """ + # | | ??????????????????????? ? #" # # # | | ????????????????????#? #"" # """ # # | | ????????????????????# """ """ #### ## """ # # | | ????????????????????# """ """ #?## ## """ # | | ?????????????? ????# """ """ ??## ## + | | ?????????????? ???# ??## ###+##### | | ????????????? ???# ##?## ### #?######/ | | ????????????? ### #### ## ### | | ????????????? % # | | ???????????? [%*! + | | ????????????? ! k # | | ????????????????###### Yu ### ## ## | | ?????????????????????# # %#%!########## ## | | ??????????????????# # YY#=! + ## | | ??????????????????# ?# Y/[ ## ## | | ??????????????????# ??YssY# ## ######## | | ??????????????????#????# # ## #??????? | | ???????????????????????# s# ## #??????? | | ???????????????????????# # ##+######?? | | ???????????????????????# # ## #?? | | ???????????????????????# ########/##### #?? | | ??????????????????????## ##?????? #???# ### | | ??????????????????????# ##### #?# # | | ??????????????????????# @ ^ #?# # " | | ??????????????????????# > #?# # " | | ??????????????????????# #?# # " | | ??????????????????????# ! ##### #?# # | | ??????????????????????#######????? ##?# ### | | ???????????????????????????????????? #??# #?? | | ?????????????????????????????????????#??# #?? | | ????????????????????????????????????????# #?? | | ?????????????????????????????????#??????# ##? | | ???????????????????????????????### ########+#### | | ?????????????????????????????? | | ?????????????????????????????? | | ?????????????????????????????? | | ???????????????????????????????# ######## # # # | | ?????????????????????????????????????????# | | ?????????????????????????????????????????# | | ?????????????????????????????????????????# | | ?????????????????????????????????????????# | | ?????????????????????????????????????????# | | ?????????????????????????????????????????# | | ?????????????????????????????????????????# | | ?????????????????????????????????????????# | | ?????????????????????????????????????????# | | ?????????????????????????????????????????######### | | ?????????????????????????????????????????????????? | +----------------------------------------------------+ Best States ------------- Heat Dissipation 42 Energy Generation 10 Energy Capacity 250 Matter Stores 300 Matter Capacity 300 Sight Range 16 Robot Scan Range 14 Terrain Scan Density 10 Evasion (%) 55 Item Schematics ----------------- None Robot Schematics ------------------ None Fabricated ------------ Nothing Alien Tech Used ----------------- None Achievements -------------- None Challenges ------------ None Game ------ Seed MicroSpectralInsulator Manual? 0 Play Time 00:34:05 Cumulative 85.7 hours Start 2024.01.05 @ 19:08:38 End 2024.01.05 @ 19:47:41 Sessions 1 Manual Loads 0 Difficulty Rogue Special Mode None Game No. 78 Rogue 78 Adventurer 0 Explorer 0 Win Type - Total 0 Types 0/0/0/0/0/0/0/0/0 Lore% 19 Gallery% 41 Achievement% 22 Wizard Run 0 Options --------- ASCII 0 Keyboard 1 Movement Arrows Keybinds 0 Fullscreen 1 Font 24/Smallcaps Map View 76x50 Tactical HUD 1 Map Filters NONE Filters NONE Steam 1 RUN: ff1760ee-778d-462c-8b2a-8ecb5a5d530a